fUST/lending_fUST_20260109
["ID","MTS","AMOUNT","RATE_DAILY","PERIOD"]
[401050513,1767893462140,-500.0,0.00027945,5]
[401050514,1767893462150,-500.0,0.00027945,5]
[401050515,1767893462159,-500.0,0.00027945,5]
[401050516,1767893462169,-500.0,0.00027945,5]
[401050517,1767893462178,-500.0,0.00027945,5]
[401050518,1767893462187,-500.0,0.00027945,5]
[401050519,1767893462196,-549.18800917,0.00027945,5]
[401050520,1767893462206,-500.0,0.00027945,5]
[401050521,1767893462217,-500.0,0.00027945,5]
[401050522,1767893462226,-287.59648149,0.00027945,5]
[401050523,1767893462234,-500.0,0.00027945,5]
[401050524,1767893462243,-309.06648338,0.00027945,5]
[401050525,1767893462252,-500.0,0.00027945,5]
[401050526,1767893462261,-200.455685,0.00027945,7]
[401050527,1767893462270,-151.0,0.00027945,7]
[401050528,1767893462279,-151.0,0.00027945,7]
[401050529,1767893462287,-151.0,0.00027945,7]
[401050530,1767893462296,-151.0,0.00027945,7]
[401050531,1767893462306,-157.291642,0.00027945,7]
[401050532,1767893462315,-151.0,0.00027945,7]
[401050533,1767893462326,-183.558633,0.00027945,7]
[401050534,1767893462336,-183.558633,0.00027945,7]
[401050535,1767893462346,-183.558633,0.00027945,7]
[401050536,1767893462356,-183.558633,0.00027945,7]
[401050537,1767893462366,-155.515996,0.00027945,7]
[401050538,1767893462376,-151.0,0.00027945,7]
[401050539,1767893462385,-154.07937,0.00027945,7]
[401050540,1767893462395,-151.0,0.00027945,7]
[401050541,1767893462404,-191.094302,0.00027945,7]
[401050542,1767893462414,-191.094302,0.00027945,7]
[401050543,1767893462424,-191.094302,0.00027945,7]
[401050544,1767893462433,-191.094302,0.00027945,7]
[401050545,1767893462443,-151.0,0.00027945,7]
[401050546,1767893462452,-182.749737,0.00027945,7]
[401050547,1767893462461,-151.0,0.00027945,7]
[401050548,1767893462470,-182.749737,0.00027945,7]
[401050549,1767893462481,-151.0,0.00027945,7]
[401050550,1767893462490,-182.749737,0.00027945,7]
[401050551,1767893462500,-182.749737,0.00027945,7]
[401050552,1767893462510,-1000.0,0.00027945,5]
[401050553,1767893462519,-600.0,0.00027945,5]
[401050554,1767893462529,-750.0,0.00027945,5]
[401050555,1767893462539,-250.0,0.00027945,5]
[401050556,1767893462548,-250.0,0.00027945,5]
[401050557,1767893462557,-1200.0,0.00027952,7]
[401050558,1767893462566,-500.0,0.00027986,7]
[401050559,1767893462576,-200.0,0.00027997,10]
[401050560,1767893462585,-602648.22267853,0.00027998,2]
[401050561,1767893462600,-200.0,0.00027999,10]
[401050562,1767893462610,-242.0,0.00028,27]
[401050563,1767893462619,-15319.9145818,0.00028,2]
[401050564,1767893462628,-520.06110599,0.00028,2]
[401050565,1767893462639,-2373.26906487,0.00028058,2]
[401050566,1767893462649,-1841.0,0.00028065,2]
[401050567,1767893462658,-1840.0,0.00028131,2]
[401050568,1767893462670,-5000.0,0.00028191,2]
[401050569,1767893462679,-200.0,0.00028218,10]
[401050570,1767893462689,-513.45199538,0.00028219,5]
[401050571,1767893462699,-500.86524409,0.00028219,5]
[401050572,1767893462710,-497.96063553,0.00028219,5]
[401050573,1767893462719,-500.0,0.00028219,5]
[401050574,1767893462729,-500.0,0.00028219,5]
[401050575,1767893462739,-612.41440878,0.00028219,5]
[401050576,1767893462749,-297.58,0.00028219,5]
[401050577,1767893462759,-500.0,0.00028219,5]
[401050578,1767893462769,-582.07234526,0.00028219,5]
[401050579,1767893462779,-500.0,0.00028219,5]
[401050580,1767893462788,-500.0,0.00028219,5]
[401050581,1767893462797,-405.74258488,0.00028219,5]
[401050582,1767893462806,-588.98842258,0.00028219,5]
[401050583,1767893462816,-500.0,0.00028219,5]
[401050584,1767893462826,-579.73533389,0.00028219,5]
[401050585,1767893462835,-500.0,0.00028219,5]
[401050586,1767893462844,-394.17567873,0.00028219,5]
[401050587,1767893462854,-500.0,0.00028219,5]
[401050588,1767893462867,-530.61560134,0.00028219,5]
[401050590,1767893462877,-533.06761859,0.00028219,5]
[401050591,1767893462886,-500.0,0.00028219,5]
[401050592,1767893462896,-500.0,0.00028219,5]
[401050593,1767893462906,-514.09473356,0.00028219,5]
[401050594,1767893462916,-500.0,0.00028219,5]
[401050595,1767893462926,-500.0,0.00028219,5]
[401050596,1767893462936,-500.0,0.00028219,5]
[401050597,1767893462946,-500.0,0.00028219,5]
[401050598,1767893462956,-500.0,0.00028219,5]
[401050599,1767893462966,-500.0,0.00028219,5]
[401050600,1767893462976,-500.0,0.00028219,5]
[401050601,1767893462986,-500.0,0.00028219,5]
[401050602,1767893462996,-500.0,0.00028219,5]
[401050603,1767893463007,-500.0,0.00028219,5]
[401050604,1767893463017,-500.0,0.00028219,5]
[401050605,1767893463029,-511.94139477,0.00028219,5]
[401050606,1767893463040,-569.17962783,0.00028219,5]
[401050607,1767893463051,-500.0,0.00028219,5]
[401050608,1767893463062,-500.0,0.00028219,5]
[401050609,1767893463072,-500.0,0.00028219,5]
[401050610,1767893463082,-500.0,0.00028219,5]
[401050611,1767893463092,-624.26495393,0.00028219,5]
[401050612,1767893463102,-520.34200526,0.00028219,5]
[401050613,1767893463118,-633.51902732,0.00028219,5]
[401050614,1767893463128,-500.0,0.00028219,5]
[401050615,1767893463138,-500.0,0.00028219,5]
[401050616,1767893463149,-566.54165427,0.00028219,5]
[401050617,1767893463160,-500.0,0.00028219,5]
[401050618,1767893463172,-500.0,0.00028219,5]
[401050619,1767893463182,-500.0,0.00028219,5]
[401050620,1767893463193,-557.97,0.00028219,5]
[401050621,1767893463202,-500.0,0.00028219,2]
[401050622,1767893463211,-500.0,0.00028219,5]
[401050623,1767893463222,-565.13404802,0.00028219,5]
[401050624,1767893463232,-500.0,0.00028219,5]
[401050625,1767893463242,-183.66748162,0.00028219,5]
[401050626,1767893463252,-554.80006418,0.00028219,5]
[401050627,1767893463262,-374.576127,0.00028219,5]
[401050628,1767893463272,-500.0,0.00028219,5]
[401050629,1767893463281,-533.07055189,0.00028219,5]
[401050630,1767893463292,-357.72166932,0.00028219,5]
[401050631,1767893463302,-500.0,0.00028219,5]
[401050632,1767893463312,-576.90861683,0.00028219,5]
[401050633,1767893463322,-692.57,0.00028219,5]
[401050634,1767893463332,-500.0,0.00028219,5]
[401050635,1767893463342,-500.0,0.00028219,5]
[401050636,1767893463352,-516.11098729,0.00028219,5]
[401050637,1767893463366,-500.0,0.00028219,5]
[401050638,1767893463376,-274.42783442,0.00028219,5]
[401050639,1767893463386,-500.0,0.00028219,5]
[401050640,1767893463396,-500.0,0.00028219,5]
[401050641,1767893463406,-500.0,0.00028219,5]
[401050642,1767893463416,-226.89675008,0.00028219,5]
[401050643,1767893463426,-513.42681652,0.00028219,5]
[401050644,1767893463436,-502.07567696,0.00028219,5]
[401050645,1767893463447,-512.20150664,0.00028219,5]
[401050646,1767893463457,-500.0,0.00028219,5]
[401050647,1767893463467,-500.0,0.00028219,5]
[401050648,1767893463476,-500.0,0.00028219,5]
[401050649,1767893463486,-500.0,0.00028219,5]
[401050650,1767893463497,-405.41671079,0.00028219,5]
[401050651,1767893463508,-500.0,0.00028219,5]
[401050652,1767893463518,-581.61185444,0.00028219,5]
[401050653,1767893463528,-500.0,0.00028219,5]
[401050654,1767893463537,-500.0,0.00028219,5]
[401050655,1767893463547,-509.55655031,0.00028219,5]
[401050656,1767893463557,-198.56059124,0.00028219,5]
[401050657,1767893463567,-590.70927829,0.00028219,5]
[401050658,1767893463577,-500.0,0.00028219,5]
[401050659,1767893463590,-500.0,0.00028219,5]
[401050660,1767893463601,-177.29708552,0.00028219,5]
[401050661,1767893463614,-508.5629303,0.00028219,5]
[401050662,1767893463624,-500.0,0.00028219,5]
[401050663,1767893463638,-258.46730873,0.00028219,5]
[401050664,1767893463647,-507.82599306,0.00028219,5]
[401050665,1767893463656,-500.0,0.00028219,5]
[401050666,1767893463667,-500.0,0.00028219,5]
[401050667,1767893463677,-500.0,0.00028219,5]
[401050668,1767893463687,-500.0,0.00028219,5]
[401050669,1767893463697,-268.53624547,0.00028219,5]
[401050670,1767893463707,-500.0,0.00028219,5]
[401050671,1767893463717,-543.05325909,0.00028219,5]
[401050672,1767893463726,-516.10779344,0.00028219,5]
[401050673,1767893463736,-500.0,0.00028219,5]
[401050674,1767893463747,-500.0,0.00028219,5]
[401050675,1767893463757,-500.0,0.00028219,5]
[401050676,1767893463767,-500.0,0.00028219,5]
[401050677,1767893463777,-500.0,0.00028219,5]
[401050678,1767893463787,-500.0,0.00028219,5]
[401050679,1767893463797,-500.0,0.00028219,5]
[401050680,1767893463807,-500.0,0.00028219,5]
[401050681,1767893463818,-500.0,0.00028219,5]
[401050682,1767893463828,-507.90997943,0.00028219,5]
[401050683,1767893463838,-500.0,0.00028219,5]
[401050684,1767893463848,-500.0,0.00028219,5]
[401050685,1767893463859,-574.38920734,0.00028219,5]
[401050686,1767893463869,-1000.0,0.00028219,2]
[401050687,1767893463879,-500.0,0.00028219,5]
[401050688,1767893463889,-500.0,0.00028219,5]
[401050689,1767893463899,-517.55874264,0.00028219,5]
[401050690,1767893463910,-500.0,0.00028219,5]
[401050691,1767893463919,-500.0,0.00028219,5]
[401050692,1767893463929,-500.0,0.00028219,5]
[401050693,1767893463940,-500.0,0.00028219,5]
[401050694,1767893463950,-500.0,0.00028219,5]
[401050695,1767893463960,-500.0,0.00028219,5]
[401050696,1767893463970,-500.0,0.00028219,5]
[401050697,1767893463980,-500.0,0.00028219,5]
[401050698,1767893463990,-500.0,0.00028219,5]
[401050699,1767893464000,-258.34773752,0.00028219,5]
[401050700,1767893464009,-500.0,0.00028219,5]
[401050701,1767893464019,-500.0,0.00028219,5]
[401050702,1767893464030,-500.0,0.00028219,5]
[401050703,1767893464040,-500.0,0.00028219,5]
[401050704,1767893464050,-182.11757682,0.00028219,5]
[401050705,1767893464059,-568.57666339,0.00028219,5]
[401050706,1767893464069,-500.0,0.00028219,5]
[401050707,1767893464080,-525.62889276,0.00028219,5]
[401050708,1767893464092,-503.77295029,0.00028219,5]
[401050709,1767893464101,-1200.0,0.00028269,7]
[401050710,1767893464112,-2000.0,0.00028293,7]
[401050711,1767893464123,-492.25,0.000283,2]
[401050712,1767893464133,-20550.55,0.000283,2]
[401050713,1767893464142,-1840.0,0.00028341,2]
[401050714,1767893464152,-810.2,0.00028393,3]
[401050715,1767893464162,-2373.26906487,0.00028473,2]
[401050716,1767893464172,-5016.95882183,0.0002849,2]
[401050717,1767893464182,-204.06495255,0.00028493,5]
[401050718,1767893464192,-312.22825573,0.00028493,5]
[401050719,1767893464202,-500.0,0.00028493,5]
[401050720,1767893464212,-508.15643298,0.00028493,5]
[401050721,1767893464222,-407.94840755,0.00028493,5]
[401050722,1767893464233,-503.89092582,0.00028493,5]
[401050723,1767893464242,-500.0,0.00028493,5]
[401050724,1767893464253,-349.35207242,0.00028493,5]
[401050725,1767893464263,-500.0,0.00028493,5]
[401050726,1767893464274,-500.0,0.00028493,5]
[401050727,1767893464284,-626.21255771,0.00028493,5]
[401050728,1767893464293,-507.75921708,0.00028493,5]
[401050729,1767893464303,-513.80095476,0.00028493,5]
[401050730,1767893464313,-500.0,0.00028493,5]
[401050731,1767893464323,-500.0,0.00028493,5]
[401050732,1767893464333,-506.53673654,0.00028493,5]
[401050733,1767893464342,-469.42248701,0.00028493,5]
[401050734,1767893464352,-528.68832744,0.00028493,5]
[401050735,1767893464363,-500.0,0.00028493,5]
[401050736,1767893464373,-500.0,0.00028493,5]
[401050737,1767893464383,-500.0,0.00028493,5]
[401050738,1767893464392,-500.0,0.00028493,5]
[401050739,1767893464401,-500.0,0.00028493,5]
[401050740,1767893464411,-500.0,0.00028493,5]
[401050741,1767893464421,-199.92301823,0.00028493,5]
[401050742,1767893464432,-629.27175588,0.00028493,5]
[401050743,1767893464443,-503.54137987,0.00028493,5]
[401050744,1767893464454,-500.0,0.00028493,5]
[401050745,1767893464464,-500.0,0.00028493,5]
[401050746,1767893464474,-557.97,0.00028493,5]
[401050747,1767893464483,-500.0,0.00028493,2]
[401050748,1767893464492,-310.29026216,0.00028493,5]
[401050749,1767893464503,-541.95355166,0.00028493,5]
[401050750,1767893464513,-500.0,0.00028493,5]
[401050751,1767893464523,-198.23917432,0.00028493,5]
[401050752,1767893464534,-692.57,0.00028493,5]
[401050753,1767893464545,-502.21504382,0.00028493,5]
[401050754,1767893464555,-209.4082402,0.00028493,5]
[401050755,1767893464564,-510.84183893,0.00028493,5]
[401050756,1767893464574,-502.15012699,0.00028493,5]
[401050757,1767893464584,-500.0,0.00028493,5]
[401050758,1767893464717,-509.18613454,0.00028493,5]
[401050759,1767893464727,-260.30185634,0.00028493,5]
[401050760,1767893464737,-469.83361693,0.00028493,5]
[401050761,1767893464746,-506.67232596,0.00028493,5]
[401050762,1767893464756,-502.90447318,0.00028493,5]
[401050763,1767893464765,-501.76920259,0.00028493,5]
[401050764,1767893464775,-366.99714151,0.00028493,5]
[401050765,1767893464784,-504.5389657,0.00028493,5]
[401050766,1767893464794,-534.62357547,0.00028493,5]
[401050767,1767893464803,-508.38594679,0.00028493,5]
[401050768,1767893464813,-328.66927249,0.00028493,5]
[401050769,1767893464823,-500.0,0.00028493,5]
[401050770,1767893464833,-264.07184888,0.00028493,5]
[401050771,1767893464842,-357.73744194,0.00028493,5]
[401050772,1767893464850,-500.0,0.00028493,5]
[401050773,1767893464860,-280.9365904,0.00028493,5]
[401050774,1767893464869,-589.05512716,0.00028493,5]
[401050775,1767893464879,-500.0,0.00028493,5]
[401050776,1767893464888,-500.0,0.00028493,5]
[401050777,1767893464898,-500.0,0.00028493,5]
[401050778,1767893464908,-500.0,0.00028493,5]
[401050779,1767893464918,-192.36531113,0.00028493,5]
[401050780,1767893464928,-500.0,0.00028493,5]
[401050781,1767893464936,-500.0,0.00028493,5]
[401050782,1767893464945,-500.0,0.00028493,5]
[401050783,1767893464955,-500.0,0.00028493,5]
[401050784,1767893464965,-500.0,0.00028493,5]
[401050785,1767893464975,-1000.0,0.00028493,2]
[401050786,1767893464984,-439.60840738,0.00028493,5]
[401050787,1767893464993,-333.15161352,0.00028493,5]
[401050788,1767893465002,-500.0,0.00028493,5]
[401050789,1767893465012,-500.0,0.00028493,5]
[401050790,1767893465021,-500.0,0.00028493,5]
[401050791,1767893465031,-151.21651975,0.00028493,5]
[401050792,1767893465041,-500.0,0.00028493,5]
[401050793,1767893465050,-509.74196328,0.00028493,5]
[401050794,1767893465061,-151.0,0.00028493,7]
[401050795,1767893465070,-500.0,0.00028493,5]
[401050796,1767893465080,-278.670789,0.00028493,7]
[401050797,1767893465089,-500.0,0.00028493,5]
[401050798,1767893465099,-500.0,0.00028493,5]
[401050799,1767893465109,-500.0,0.00028493,5]
[401050800,1767893465118,-160.37277411,0.00028493,5]
[401050801,1767893465127,-284.584796,0.00028493,7]
[401050802,1767893465137,-516.18157552,0.00028493,5]
[401050803,1767893465146,-500.0,0.00028493,5]
[401050804,1767893465155,-514.67987739,0.00028493,5]
[401050805,1767893465165,-248.949077,0.00028493,7]
[401050806,1767893465175,-248.949077,0.00028493,7]
[401050807,1767893465184,-248.949077,0.00028493,7]
[401050808,1767893465194,-248.949077,0.00028493,7]
[401050809,1767893465204,-151.0,0.00028493,7]
[401050810,1767893465215,-151.0,0.00028493,7]
[401050811,1767893465224,-1439.873322,0.00028493,7]
[401050812,1767893465234,-1439.873322,0.00028493,7]
[401050813,1767893465244,-1439.873322,0.00028493,7]
[401050814,1767893465253,-1439.873322,0.00028493,7]
[401050815,1767893465264,-622.20825,0.00028493,7]
[401050816,1767893465273,-622.20825,0.00028493,7]
[401050817,1767893465284,-622.20825,0.00028493,7]
[401050818,1767893465294,-622.20825,0.00028493,7]
[401050819,1767893465305,-757.340513,0.00028493,7]
[401050820,1767893465315,-151.0,0.00028493,7]
[401050821,1767893465325,-757.340513,0.00028493,7]
[401050822,1767893465335,-757.340513,0.00028493,7]
[401050823,1767893465345,-757.340513,0.00028493,7]
[401050824,1767893465355,-850.0,0.00028493,5]
[401050825,1767893465365,-845.80901206,0.00028493,5]
[401050826,1767893465375,-900.0,0.00028493,5]
[401050827,1767893465384,-350.0,0.00028493,5]
[401050828,1767893465394,-350.0,0.00028493,5]
[401050829,1767893465405,-298517.30082199,0.000285,7]
[401050830,1767893465415,-1840.0,0.00028621,2]
[401050831,1767893465425,-1200.0,0.00028629,7]
[401050832,1767893465435,-500.0,0.00028651,7]
[401050833,1767893465445,-1840.0,0.00028677,2]
[401050834,1767893465455,-2373.26906487,0.00028698,2]
[401050835,1767893465464,-1502.08,0.000287,14]
[401050836,1767893465473,-4000.0,0.0002876,5]
[401050837,1767893465482,-19137.07550739,0.0002876,2]
[401050838,1767893465491,-500.0,0.00028767,5]
[401050839,1767893465500,-506.56048113,0.00028767,5]
[401050840,1767893465510,-500.0,0.00028767,5]
[401050841,1767893465519,-500.0,0.00028767,5]
[401050842,1767893465528,-298.53347752,0.00028767,5]
[401050843,1767893465537,-503.79600458,0.00028767,5]
[401050844,1767893465547,-511.08230985,0.00028767,5]
[401050845,1767893465556,-503.55979008,0.00028767,5]
[401050846,1767893465566,-500.50983515,0.00028767,5]
[401050847,1767893465575,-580.79907686,0.00028767,5]
[401050848,1767893465585,-517.59042391,0.00028767,5]
[401050849,1767893465596,-500.0,0.00028767,5]
[401050850,1767893465608,-575.68431835,0.00028767,5]
[401050851,1767893465617,-500.0,0.00028767,5]
[401050852,1767893465627,-557.97,0.00028767,5]
[401050853,1767893465637,-500.0,0.00028767,2]
[401050854,1767893465647,-506.05221576,0.00028767,5]
[401050855,1767893465657,-692.57,0.00028767,5]
[401050856,1767893465668,-500.0,0.00028767,5]
[401050857,1767893465678,-500.0,0.00028767,5]
[401050858,1767893465688,-500.0,0.00028767,5]
[401050859,1767893465698,-500.0,0.00028767,5]
[401050860,1767893465708,-194.01488051,0.00028767,5]
[401050861,1767893465717,-500.0,0.00028767,5]
[401050862,1767893465726,-500.0,0.00028767,5]
[401050863,1767893465736,-187.05517944,0.00028767,5]
[401050864,1767893465746,-377.07888585,0.00028767,5]
[401050865,1767893465756,-500.0,0.00028767,5]
[401050866,1767893465766,-500.0,0.00028767,5]
[401050867,1767893465776,-500.0,0.00028767,5]
[401050868,1767893465786,-151.0,0.00028767,7]
[401050869,1767893465797,-1000.0,0.00028767,2]
[401050870,1767893465806,-151.0,0.00028767,7]
[401050871,1767893465817,-151.0,0.00028767,7]
[401050872,1767893465827,-568.88675922,0.00028767,5]
[401050873,1767893465836,-500.0,0.00028767,5]
[401050874,1767893465846,-506.17937664,0.00028767,5]
[401050875,1767893465857,-331.75781953,0.00028767,5]
[401050876,1767893465866,-500.0,0.00028767,5]
[401050877,1767893465875,-364.95780871,0.00028767,5]
[401050878,1767893465885,-500.0,0.00028767,5]
[401050879,1767893465894,-374.31912928,0.00028767,5]
[401050880,1767893465903,-1963.69,0.00028767,4]
[401050881,1767893465913,-564.738811,0.00028767,60]
[401050882,1767893465923,-165451.53545789,0.000288,2]
[401050883,1767893466296,573.54037879,0.00030136,120]
[401050884,1767893466916,-3e-08,0.00013698,2]
[401050885,1767893466932,-742.64741829,0.00013698,2]
[401050886,1767893466949,-615.71258168,0.00013698,2]
[401050887,1767893466958,-1358.36,0.00013698,2]
[401050888,1767893466968,-1358.36,0.00013698,2]
[401050889,1767893466978,-1358.36,0.00013698,2]
[401050890,1767893466988,-1358.36,0.00013698,2]
[401050891,1767893466997,-1358.36,0.00013698,2]
[401050892,1767893467007,-1358.36,0.00013698,2]
[401050893,1767893467017,-1358.36,0.00013698,2]
[401050894,1767893467026,-1358.50047477,0.00013698,2]
[401050895,1767893467036,-151.0,0.00017108,2]
[401050896,1767893467046,-151.0,0.00017559,2]
[401050897,1767893467056,-151.0,0.00017559,2]
[401050898,1767893467065,-151.0,0.00017559,2]
[401050899,1767893467074,-151.0,0.000189,2]
[401050900,1767893467083,-151.0,0.00023084,2]
[401050901,1767893467093,-151.0,0.00024658,2]
[401050902,1767893467103,-151.0,0.00024658,2]
[401050903,1767893467116,-151.0,0.00024658,2]
[401050904,1767893467126,-151.0,0.00024658,7]
[401050905,1767893467138,-151.0,0.000249,7]
[401050906,1767893467148,-151.0,0.000249,7]
[401050907,1767893467157,-151.0,0.00027397,7]
[401050908,1767893467166,-151.0,0.00027397,7]
[401050909,1767893467176,-4628.46694355,0.000288,2]
[401050910,1767893467681,500.0,0.00030136,120]
[401050911,1767893467741,500.0,0.00030136,120]
[401050912,1767893467811,500.0,0.00030136,120]
[401050913,1767893467863,500.0,0.00030136,120]
[401050914,1767893467897,-1543.21631667,0.00016613,2]
[401050915,1767893468224,-726.62003066,0.00016613,2]
[401050916,1767893468349,266.49661152,0.00030136,120]
[401050917,1767893468516,246.56257818,0.00030136,120]
[401050918,1767893468623,500.0,0.00030136,120]
[401050919,1767893468678,500.0,0.00030136,120]
[401050920,1767893468735,500.0,0.00030136,120]
[401050921,1767893468805,500.0,0.00030136,120]
[401050922,1767893468868,500.0,0.00030136,120]
[401050923,1767893468924,521.18235265,0.00030136,120]
[401050924,1767893468990,500.0,0.00030136,120]
[401050925,1767893469041,500.0,0.00030136,120]
[401050926,1767893469097,550.37628333,0.00030136,120]
[401050927,1767893469151,-397.50402026,9.149e-05,2]
[401050928,1767893469667,500.0,0.00030136,120]
[401050929,1767893470009,500.0,0.00030136,120]
[401050930,1767893470063,500.0,0.00030136,120]
[401050931,1767893470114,486.94532185,0.00030136,120]
[401050932,1767893470682,500.0,0.00030136,120]
[401050933,1767893471092,-300.0,9.148e-05,2]
[401050934,1767893471115,-89.15,9.149e-05,2]
[401050935,1767893471907,500.0,0.00030136,120]
[401050936,1767893473154,519.64026232,0.00030136,120]
[401050937,1767893473183,-13.34597974,9.149e-05,2]
[401050938,1767893473207,-364.58141253,9.149e-05,2]
[401050939,1767893475301,500.0,0.00030136,120]
[401050940,1767893475690,500.0,0.00030136,120]
[401050941,1767893475925,500.0,0.00030136,120]
[401050942,1767893476233,500.0,0.00030136,120]
[401050943,1767893476653,-135.41858747,9.149e-05,2]
[401050944,1767893476677,-130.72787271,9.149e-05,2]
[401050945,1767893482253,500.0,0.00030136,120]
[401050946,1767893482769,328.9714411,0.00030136,120]
[401050947,1767893484078,500.0,0.00030136,120]
[401050948,1767893485112,500.0,0.00030136,120]
[401050949,1767893485376,500.0,0.00030136,120]
[401050950,1767893485616,225.34086943,0.00030136,120]
[401050951,1767893493006,1000.0,0.000301,120]
[401050952,1767893493861,526.99020727,0.00030136,120]
[401050953,1767893498085,298.53347752,0.00030136,120]
[401050954,1767893499872,503.79600458,0.00030136,120]
[401050955,1767893501570,500.0,0.00030136,120]
[401050956,1767893501770,195.70720287,0.00030136,120]
[401050957,1767893501829,240.60573451,0.00030136,120]
[401050958,1767893506187,500.0,0.00030136,120]
[401050959,1767893510834,500.0,0.00030136,120]
[401050960,1767893511114,333.69361612,0.00030136,120]
[401050961,1767893511164,503.55979008,0.00030136,120]
[401050962,1767893513478,-369.27212729,9.149e-05,2]
[401050963,1767893513508,-449.63287665,9.149e-05,2]
[401050964,1767893513539,-500.0,9.149e-05,2]
[401050965,1767893513569,-500.0,9.149e-05,2]
[401050966,1767893513601,-500.0,9.149e-05,2]
[401050967,1767893513631,-500.0,9.149e-05,2]
[401050968,1767893513663,-220.59872061,9.149e-05,2]
[401050969,1767893513798,-3214.37475519,9.149e-05,2]
[401050970,1767893513855,-786.76625013,9.149e-05,2]
[401050971,1767893513886,-500.0,9.149e-05,2]
[401050972,1767893513919,-3425.33649442,9.149e-05,2]
[401050973,1767893513972,-575.8045109,9.149e-05,2]
[401050974,1767893514006,-500.0,9.149e-05,2]
[401050975,1767893514043,-4001.14100532,9.149e-05,2]
[401050976,1767893514077,-497.72798936,9.149e-05,2]
[401050977,1767893514132,-2.27201064,9.149e-05,2]
[401050978,1767893514247,500.0,0.00030136,120]
[401050979,1767893514519,500.0,0.00030136,120]
[401050980,1767893514845,500.0,0.00030136,120]
[401050981,1767893515117,500.0,0.00030136,120]
[401050982,1767893515364,500.0,0.00030136,120]
[401050983,1767893515602,516.03075292,0.00030136,120]
[401050984,1767893520070,500.0,0.00030136,120]
[401050985,1767893520339,500.0,0.00030136,120]
[401050986,1767893520499,-4001.14100532,9.149e-05,2]
[401050987,1767893520529,-500.0,9.149e-05,2]
[401050988,1767893520561,-497.72798936,9.149e-05,2]
[401050989,1767893520613,-2.27201064,9.149e-05,2]
[401050990,1767893523300,500.0,0.00030136,120]
[401050991,1767893523531,500.0,0.00030136,120]
[401050992,1767893527720,-300.0,9.148e-05,2]
[401050993,1767893527749,-500.0,9.149e-05,2]
[401050994,1767893527778,-4001.14100532,9.149e-05,2]
[401050995,1767893527833,-397.72798936,9.149e-05,2]
[401050996,1767893527946,-102.27201064,9.149e-05,2]
[401050997,1767893527975,-500.0,9.149e-05,2]
[401050998,1767893528004,-500.0,9.149e-05,2]
[401050999,1767893528033,-500.0,9.149e-05,2]
[401051000,1767893528061,-500.0,9.149e-05,2]
[401051001,1767893528090,-500.0,9.149e-05,2]
[401051002,1767893528117,-500.0,9.149e-05,2]
[401051003,1767893528145,-500.0,9.149e-05,2]
[401051004,1767893528174,-500.0,9.149e-05,2]
[401051005,1767893528201,-500.0,9.149e-05,2]
[401051006,1767893528230,-295.46597872,9.149e-05,2]
[401051007,1767893528386,-204.53402128,9.149e-05,2]
[401051008,1767893528449,-204.53402128,9.15e-05,2]
[401051009,1767893528463,-9590.94195744,9.15e-05,2]
[401051010,1767893532956,500.0,0.00030136,120]
[401051011,1767893533192,500.0,0.00030136,120]
[401051012,1767893534888,647.60836099,0.00030136,120]
[401051013,1767893536069,506.56048113,0.00030136,120]